fUST/lending_fUST_20250210
["ID","MTS","AMOUNT","RATE_DAILY","PERIOD"]
[352539725,1739158239603,-500.0,0.00010958,2]
[352539726,1739158239613,-500.0,0.00010958,2]
[352539727,1739158239622,-541.97,0.00010958,2]
[352539728,1739158239631,-500.0,0.00010958,2]
[352539729,1739158239639,-500.0,0.00010958,2]
[352539730,1739158239649,-500.0,0.00010958,2]
[352539731,1739158239658,-560.89,0.00010958,2]
[352539732,1739158239667,-500.0,0.00010958,2]
[352539733,1739158239677,-1382.72,0.00010958,2]
[352539734,1739158239686,-500.0,0.00010958,2]
[352539735,1739158239695,-500.0,0.00010958,2]
[352539736,1739158239704,-500.0,0.00010958,2]
[352539737,1739158239715,-500.0,0.00010958,2]
[352539738,1739158239724,-500.0,0.00010958,2]
[352539739,1739158239733,-1123.04,0.00010958,2]
[352539740,1739158239742,-500.0,0.00010958,2]
[352539741,1739158239752,-1124.08,0.00010958,2]
[352539742,1739158239760,-500.0,0.00010958,2]
[352539743,1739158239770,-500.0,0.00010958,2]
[352539744,1739158239779,-189.33009834,0.00010958,2]
[352539745,1739158239788,-500.0,0.00010958,2]
[352539746,1739158239797,-500.0,0.00010958,2]
[352539747,1739158239807,-500.0,0.00010958,2]
[352539748,1739158239819,-500.0,0.00010958,2]
[352539749,1739158239829,-500.0,0.00010958,2]
[352539750,1739158239838,-785.51,0.00010958,2]
[352539751,1739158239848,-500.0,0.00010958,2]
[352539752,1739158239858,-500.0,0.00010958,2]
[352539753,1739158239868,-500.0,0.00010958,2]
[352539754,1739158239877,-590.80711192,0.00010958,2]
[352539755,1739158239887,-500.0,0.00010958,2]
[352539756,1739158239896,-1966.77,0.00010958,2]
[352539757,1739158239906,-500.0,0.00010958,2]
[352539758,1739158239915,-500.0,0.00010958,2]
[352539759,1739158239924,-500.0,0.00010958,2]
[352539760,1739158239933,-517.43,0.00010958,2]
[352539761,1739158239943,-2179.85,0.00010958,2]
[352539762,1739158239952,-1003.81,0.00010958,2]
[352539763,1739158239962,-577.79,0.00010958,2]
[352539764,1739158239971,-500.0,0.00010958,2]
[352539765,1739158239981,-500.0,0.00010958,2]
[352539766,1739158239991,-792.12,0.00010958,2]
[352539767,1739158240001,-888.19,0.00010958,2]
[352539768,1739158240011,-500.0,0.00010958,2]
[352539769,1739158240021,-501.94132729,0.00010958,2]
[352539770,1739158240031,-715.47,0.00010958,2]
[352539771,1739158240040,-500.0,0.00010958,2]
[352539772,1739158240050,-500.0,0.00010958,2]
[352539773,1739158240059,-500.0,0.00010958,2]
[352539775,1739158240072,-500.0,0.00010958,2]
[352539777,1739158240082,-732.07,0.00010958,2]
[352539779,1739158240092,-974.08,0.00010958,2]
[352539781,1739158240102,-500.0,0.00010958,2]
[352539783,1739158240112,-591.46,0.00010958,2]
[352539785,1739158240122,-621.92124527,0.00010958,2]
[352539787,1739158240132,-500.0,0.00010958,2]
[352539789,1739158240141,-565.22,0.00010958,2]
[352539791,1739158240150,-500.0,0.00010958,2]
[352539793,1739158240160,-838.17,0.00010958,2]
[352539795,1739158240170,-500.0,0.00010958,2]
[352539797,1739158240179,-500.0,0.00010958,2]
[352539810,1739158240279,-500.0,0.00010958,2]
[352539812,1739158240289,-500.0,0.00010958,2]
[352539814,1739158240299,-500.0,0.00010958,2]
[352539816,1739158240308,-511.83,0.00010958,2]
[352539817,1739158240321,-2397.98,0.00010958,2]
[352539819,1739158240331,-500.0,0.00010958,2]
[352539820,1739158240341,-303.67374522,0.00010958,2]
[352539821,1739158240350,-500.0,0.00010958,2]
[352539822,1739158240360,-500.0,0.00010958,2]
[352539823,1739158240371,-500.0,0.00010958,2]
[352539824,1739158240380,-500.0,0.00010958,2]
[352539825,1739158240390,-500.0,0.00010958,2]
[352539826,1739158240399,-500.0,0.00010958,2]
[352539827,1739158240409,-500.0,0.00010958,2]
[352539828,1739158240419,-500.0,0.00010958,2]
[352539829,1739158240428,-2724.01,0.00010958,2]
[352539830,1739158240437,-500.0,0.00010958,2]
[352539831,1739158240446,-500.0,0.00010958,2]
[352539833,1739158240455,-500.0,0.00010958,2]
[352539834,1739158240464,-500.0,0.00010958,2]
[352539835,1739158240474,-372.74464317,0.00010958,2]
[352539836,1739158240483,-585.82299965,0.00010958,2]
[352539837,1739158240492,-500.0,0.00010958,2]
[352539838,1739158240501,-501.2785299,0.00010958,2]
[352539839,1739158240510,-500.0,0.00010958,2]
[352539840,1739158240519,-502.54969925,0.00010958,2]
[352539841,1739158240528,-206.41925426,0.00010958,2]
[352539842,1739158240537,-5390.65,0.00010958,2]
[352539843,1739158240546,-1069.82,0.00010958,2]
[352539844,1739158240555,-502.60092427,0.00010958,2]
[352539846,1739158240566,-500.0,0.00010958,2]
[352539848,1739158240575,-762.52,0.00010958,2]
[352539850,1739158240584,-529.22,0.00010958,2]
[352539851,1739158240593,-7501.34,0.00010958,2]
[352539853,1739158240602,-500.0,0.00010958,2]
[352539854,1739158240611,-500.0,0.00010958,2]
[352539856,1739158240620,-860.67,0.00010958,2]
[352539858,1739158240629,-331.44,0.00010959,2]
[352539859,1739158240639,-880.41,0.00010959,2]
[352539861,1739158240648,-4394.65003542,0.00010971,2]
[352539862,1739158240657,-500.0,0.00010973,2]
[352539863,1739158240666,-500.0,0.00010973,2]
[352539864,1739158240675,-500.0,0.00010973,2]
[352539865,1739158240684,-515.82766927,0.00010973,2]
[352539866,1739158240693,-500.56909593,0.00010973,2]
[352539867,1739158240702,-500.0,0.00010973,2]
[352539868,1739158240711,-500.54057919,0.00010973,2]
[352539869,1739158240721,-160.68360129,0.00010973,2]
[352539870,1739158240731,-500.0,0.00010973,2]
[352539871,1739158240740,-500.0,0.00010973,2]
[352539872,1739158240749,-500.0,0.00010973,2]
[352539873,1739158240759,-38025.05162214,0.00010995,2]
[352539874,1739158240768,-500.0,0.00011,14]
[352539875,1739158240777,-500.0,0.00011,14]
[352539877,1739158240787,-500.0,0.00011,14]
[352539879,1739158240796,-500.0,0.00011,14]
[352539880,1739158240805,-500.0,0.00011,14]
[352539881,1739158240818,-500.0,0.00011,14]
[352539882,1739158240828,-500.0,0.00011,14]
[352539883,1739158240837,-500.0,0.00011,14]
[352539884,1739158240846,-500.0,0.00011,14]
[352539885,1739158240856,-500.0,0.00011,14]
[352539886,1739158240865,-500.0,0.00011,14]
[352539887,1739158240875,-500.0,0.00011,14]
[352539888,1739158240884,-500.0,0.00011,14]
[352539889,1739158240894,-500.0,0.00011,14]
[352539890,1739158240902,-367.0,0.00011,14]
[352539891,1739158240912,-500.0,0.00011095,2]
[352539892,1739158240921,-500.0,0.00011095,2]
[352539893,1739158240930,-500.0,0.00011095,2]
[352539894,1739158240939,-500.0,0.00011095,2]
[352539895,1739158240948,-500.0,0.00011095,2]
[352539896,1739158240958,-500.0,0.00011095,2]
[352539897,1739158240967,-500.0,0.00011095,2]
[352539898,1739158240976,-500.0,0.00011095,2]
[352539899,1739158240985,-500.0,0.00011095,2]
[352539900,1739158240994,-500.0,0.00011095,2]
[352539901,1739158241003,-500.0,0.00011095,2]
[352539902,1739158241012,-500.0,0.00011095,2]
[352539903,1739158241022,-500.0,0.00011095,2]
[352539904,1739158241031,-502.71034168,0.00011095,2]
[352539905,1739158241040,-500.0,0.00011095,2]
[352539906,1739158241049,-500.0,0.00011095,2]
[352539907,1739158241059,-500.0,0.00011095,2]
[352539908,1739158241070,-500.0,0.00011095,2]
[352539909,1739158241079,-500.0,0.00011095,2]
[352539910,1739158241088,-500.0,0.00011095,2]
[352539911,1739158241097,-506.76682037,0.00011095,2]
[352539912,1739158241106,-404.52992911,0.00011095,2]
[352539913,1739158241114,-500.0,0.00011095,2]
[352539914,1739158241123,-500.0,0.00011095,2]
[352539915,1739158241133,-500.0,0.00011095,2]
[352539916,1739158241141,-504.57193707,0.00011095,2]
[352539917,1739158241150,-500.0,0.00011095,2]
[352539918,1739158241159,-500.0,0.00011095,2]
[352539919,1739158241168,-500.0,0.00011095,2]
[352539920,1739158241177,-502.25663102,0.00011095,2]
[352539921,1739158241185,-750.9,0.00011095,2]
[352539922,1739158241195,-504.98175039,0.00011095,2]
[352539923,1739158241206,-500.0,0.00011095,2]
[352539924,1739158241217,-500.0,0.00011095,2]
[352539925,1739158241226,-504.95706231,0.00011095,2]
[352539926,1739158241241,-500.0,0.00011095,2]
[352539927,1739158241250,-439.48788219,0.00011095,2]
[352539928,1739158241259,-502.66174536,0.00011095,2]
[352539929,1739158241268,-279.74,0.00011095,2]
[352539930,1739158241278,-500.0,0.00011095,2]
[352539931,1739158241288,-500.0,0.00011095,2]
[352539932,1739158241298,-500.0,0.00011095,2]
[352539933,1739158241306,-503.3472947,0.00011095,2]
[352539934,1739158241315,-500.0,0.00011095,2]
[352539935,1739158241324,-500.0,0.00011095,2]
[352539936,1739158241332,-500.0,0.00011095,2]
[352539937,1739158241351,-500.0,0.00011095,2]
[352539938,1739158241360,-500.0,0.00011095,2]
[352539939,1739158241369,-500.0,0.00011095,2]
[352539940,1739158241378,-500.0,0.00011095,2]
[352539941,1739158241387,-500.0,0.00011095,2]
[352539942,1739158241395,-500.0,0.00011095,2]
[352539943,1739158241404,-500.0,0.00011095,2]
[352539944,1739158241413,-500.0,0.00011095,2]
[352539945,1739158241423,-500.0,0.00011095,2]
[352539946,1739158241431,-500.0,0.00011095,2]
[352539947,1739158241440,-501.83474353,0.00011095,2]
[352539948,1739158241449,-500.0,0.00011095,2]
[352539949,1739158241458,-500.0,0.00011095,2]
[352539950,1739158241467,-500.0,0.00011095,2]
[352539951,1739158241477,-500.0,0.00011095,2]
[352539952,1739158241486,-869.06,0.00011095,2]
[352539953,1739158241495,-227.4,0.00011095,2]
[352539954,1739158241504,-500.0,0.00011095,2]
[352539955,1739158241513,-500.0,0.00011095,2]
[352539956,1739158241522,-504.59988527,0.00011095,2]
[352539957,1739158241531,-500.0,0.00011095,2]
[352539958,1739158241540,-500.0,0.00011095,2]
[352539959,1739158241549,-500.0,0.00011095,2]
[352539960,1739158241558,-500.0,0.00011095,2]
[352539961,1739158241568,-500.0,0.00011095,2]
[352539962,1739158241577,-500.0,0.00011095,2]
[352539963,1739158241587,-500.0,0.00011095,2]
[352539964,1739158241596,-500.0,0.00011095,2]
[352539965,1739158241605,-500.0,0.00011095,2]
[352539966,1739158241614,-500.0,0.00011095,2]
[352539967,1739158241623,-500.0,0.00011095,2]
[352539968,1739158241632,-500.0,0.00011095,2]
[352539969,1739158241641,-500.0,0.00011095,2]
[352539970,1739158241650,-500.0,0.00011095,2]
[352539971,1739158241659,-500.0,0.00011095,2]
[352539972,1739158241668,-500.0,0.00011095,2]
[352539973,1739158241677,-501.75425105,0.00011095,2]
[352539974,1739158241686,-500.0,0.00011095,2]
[352539975,1739158241695,-500.0,0.00011095,2]
[352539976,1739158241704,-500.0,0.00011095,2]
[352539977,1739158241714,-500.0,0.00011095,2]
[352539978,1739158241723,-500.0,0.00011095,2]
[352539979,1739158241732,-189.32511286,0.00011095,2]
[352539980,1739158241741,-503.51703914,0.00011095,2]
[352539981,1739158241750,-500.0,0.00011095,2]
[352539982,1739158241760,-194.58605998,0.00011095,2]
[352539983,1739158241769,-500.0,0.00011095,2]
[352539984,1739158241778,-500.0,0.00011095,2]
[352539985,1739158241787,-500.0,0.00011095,2]
[352539986,1739158241796,-500.0,0.00011095,2]
[352539987,1739158241805,-1264.74,0.00011095,2]
[352539988,1739158241816,-500.0,0.00011095,2]
[352539989,1739158241825,-500.0,0.00011095,2]
[352539990,1739158241834,-500.0,0.00011095,2]
[352539991,1739158241844,-502.11151147,0.00011095,2]
[352539992,1739158241853,-500.0,0.00011095,2]
[352539993,1739158241862,-500.0,0.00011095,2]
[352539994,1739158241871,-500.0,0.00011095,2]
[352539995,1739158241880,-500.0,0.00011095,2]
[352539996,1739158241889,-500.0,0.00011095,2]
[352539997,1739158241898,-500.0,0.00011095,2]
[352539998,1739158241907,-500.0,0.00011095,2]
[352539999,1739158241916,-500.0,0.00011095,2]
[352540000,1739158241925,-500.0,0.00011095,2]
[352540001,1739158241935,-500.0,0.00011095,2]
[352540002,1739158241943,-500.0,0.00011095,2]
[352540003,1739158241954,-500.0,0.00011095,2]
[352540004,1739158241965,-500.0,0.00011095,2]
[352540005,1739158241974,-500.0,0.00011095,2]
[352540006,1739158241984,-500.0,0.00011095,2]
[352540007,1739158241996,-504.6760624,0.00011095,2]
[352540008,1739158242006,-500.0,0.00011095,2]
[352540009,1739158242015,-500.0,0.00011095,2]
[352540010,1739158242024,-500.0,0.00011095,2]
[352540011,1739158242033,-500.0,0.00011095,2]
[352540012,1739158242042,-505.67076895,0.00011095,2]
[352540013,1739158242052,-500.0,0.00011095,2]
[352540014,1739158242061,-500.0,0.00011095,2]
[352540015,1739158242072,-500.0,0.00011095,2]
[352540016,1739158242081,-2387.63,0.00011095,2]
[352540017,1739158242091,-338.53199913,0.00011095,2]
[352540018,1739158242100,-2833.6,0.00011095,2]
[352540019,1739158242109,-500.0,0.00011095,2]
[352540020,1739158242119,-1462.84,0.00011095,2]
[352540021,1739158242128,-500.0,0.00011095,2]
[352540022,1739158242137,-9414.28,0.00011095,2]
[352540023,1739158242229,-2762.05,0.00011095,2]
[352540024,1739158242238,-540.44,0.00011095,2]
[352540025,1739158242248,-832.77,0.00011095,2]
[352540026,1739158242257,-500.0,0.00011095,2]
[352540027,1739158242268,-500.0,0.00011095,2]
[352540028,1739158242277,-500.0,0.00011095,2]
[352540029,1739158242289,-18426.22,0.00011095,2]
[352540030,1739158242298,-500.0,0.00011095,2]
[352540031,1739158242307,-629.0,0.00011095,2]
[352540032,1739158242319,-1212.39,0.00011095,2]
[352540033,1739158242328,-1041.49,0.00011095,2]
[352540034,1739158242337,-500.0,0.00011095,2]
[352540035,1739158242346,-500.0,0.00011095,2]
[352540036,1739158242355,-541.97,0.00011095,2]
[352540037,1739158242364,-500.0,0.00011095,2]
[352540038,1739158242374,-502.96608837,0.00011095,2]
[352540039,1739158242383,-560.89,0.00011095,2]
[352540040,1739158242392,-1382.72,0.00011095,2]
[352540041,1739158242401,-500.0,0.00011095,2]
[352540042,1739158242410,-500.0,0.00011095,2]
[352540043,1739158242419,-500.0,0.00011095,2]
[352540044,1739158242429,-500.0,0.00011095,2]
[352540045,1739158242438,-1123.04,0.00011095,2]
[352540046,1739158242447,-1124.08,0.00011095,2]
[352540047,1739158242456,-500.0,0.00011095,2]
[352540048,1739158242465,-500.0,0.00011095,2]
[352540049,1739158242474,-500.0,0.00011095,2]
[352540050,1739158242483,-500.0,0.00011095,2]
[352540051,1739158242492,-785.51,0.00011095,2]
[352540052,1739158242501,-500.0,0.00011095,2]
[352540053,1739158242509,-500.0,0.00011095,2]
[352540054,1739158242519,-500.0,0.00011095,2]
[352540055,1739158242528,-500.0,0.00011095,2]
[352540056,1739158242537,-1966.77,0.00011095,2]
[352540057,1739158242546,-500.0,0.00011095,2]
[352540058,1739158242555,-500.0,0.00011095,2]
[352540059,1739158242565,-517.43,0.00011095,2]
[352540060,1739158242575,-2179.85,0.00011095,2]
[352540061,1739158242584,-1003.81,0.00011095,2]
[352540062,1739158242594,-577.79,0.00011095,2]
[352540063,1739158242603,-500.0,0.00011095,2]
[352540064,1739158242612,-500.0,0.00011095,2]
[352540065,1739158242621,-792.12,0.00011095,2]
[352540066,1739158242630,-888.19,0.00011095,2]
[352540067,1739158242639,-500.0,0.00011095,2]
[352540068,1739158242648,-715.47,0.00011095,2]
[352540069,1739158242657,-241.3324802,0.00011095,2]
[352540070,1739158242666,-505.42088543,0.00011095,2]
[352540071,1739158242675,-500.0,0.00011095,2]
[352540072,1739158242684,-578.04927352,0.00011095,2]
[352540073,1739158242693,-732.07,0.00011095,2]
[352540074,1739158242702,-974.08,0.00011095,2]
[352540075,1739158242711,-500.0,0.00011095,2]
[352540076,1739158242720,-591.46,0.00011095,2]
[352540077,1739158242729,-500.0,0.00011095,2]
[352540078,1739158242739,-565.22,0.00011095,2]
[352540079,1739158242748,-500.0,0.00011095,2]
[352540080,1739158242757,-838.17,0.00011095,2]
[352540081,1739158242766,-500.0,0.00011095,2]
[352540082,1739158242775,-500.0,0.00011095,2]
[352540083,1739158242784,-503.0558322,0.00011095,2]
[352540084,1739158242793,-511.83,0.00011095,2]
[352540085,1739158242802,-2397.98,0.00011095,2]
[352540086,1739158242811,-500.0,0.00011095,2]
[352540087,1739158242821,-500.0,0.00011095,2]
[352540088,1739158242831,-531.7758061,0.00011095,2]
[352540089,1739158242839,-501.67906143,0.00011095,2]
[352540090,1739158242848,-500.0,0.00011095,2]
[352540091,1739158242857,-500.0,0.00011095,2]
[352540092,1739158242866,-500.0,0.00011095,2]
[352540093,1739158242876,-500.0,0.00011095,2]
[352540094,1739158242884,-2724.01,0.00011095,2]
[352540095,1739158242893,-500.0,0.00011095,2]
[352540096,1739158242902,-500.0,0.00011095,2]
[352540097,1739158242911,-500.0,0.00011095,2]
[352540098,1739158242920,-5390.65,0.00011095,2]
[352540099,1739158242929,-1069.82,0.00011095,2]
[352540100,1739158242938,-500.0,0.00011095,2]
[352540101,1739158242948,-762.52,0.00011095,2]
[352540102,1739158242957,-529.22,0.00011095,2]
[352540103,1739158242966,-7501.34,0.00011095,2]
[352540104,1739158242975,-500.0,0.00011095,2]
[352540105,1739158242984,-500.0,0.00011095,2]
[352540106,1739158242994,-166.39412694,0.00011201,2]
[352540108,1739158243004,-502.3558219,0.00011232,2]
[352540110,1739158243013,-504.96891382,0.00011232,2]
[352540112,1739158243023,-500.0,0.00011232,2]
[352540113,1739158243032,-500.0,0.00011232,2]
[352540114,1739158243041,-500.0,0.00011232,2]
[352540115,1739158243050,-500.0,0.00011232,2]
[352540116,1739158243059,-507.74716417,0.00011232,2]
[352540117,1739158243070,-262.45389299,0.00011232,2]
[352540119,1739158243079,-512.48750466,0.00011232,2]
[352540121,1739158243088,-500.0,0.00011232,2]
[352540123,1739158243102,-500.0,0.00011232,2]
[352540124,1739158243112,-500.0,0.00011232,2]
[352540125,1739158243122,-502.77689981,0.00011232,2]
[352540126,1739158243132,-465.4695409,0.00011232,2]
[352540127,1739158243143,-270.99536582,0.00011232,2]
[352540128,1739158243152,-601.45271623,0.00011232,2]
[352540129,1739158243162,-500.0,0.00011232,2]
[352540130,1739158243171,-500.0,0.00011232,2]
[352540131,1739158243181,-505.36638367,0.00011232,2]
[352540132,1739158243190,-500.0,0.00011232,2]
[352540133,1739158243200,-750.9,0.00011232,2]
[352540134,1739158243210,-501.85809083,0.00011232,2]
[352540135,1739158243223,-500.0,0.00011232,2]
[352540136,1739158243233,-622.5433876,0.00011232,2]
[352540137,1739158243242,-500.0,0.00011232,2]
[352540138,1739158243251,-500.0,0.00011232,2]
[352540139,1739158243262,-500.0,0.00011232,2]
[352540141,1739158243271,-455.21463509,0.00011232,2]
[352540142,1739158243281,-500.0,0.00011232,2]
[352540143,1739158243289,-500.0,0.00011232,2]
[352540144,1739158243299,-500.0,0.00011232,2]
[352540145,1739158243308,-500.0,0.00011232,2]
[352540146,1739158243320,-500.0,0.00011232,2]
[352540147,1739158243330,-500.0,0.00011232,2]
[352540148,1739158243339,-500.0,0.00011232,2]
[352540149,1739158243348,-500.0,0.00011232,2]
[352540150,1739158243357,-468.83,0.00011232,2]
[352540151,1739158243366,-500.0,0.00011232,2]
[352540152,1739158243377,-500.0,0.00011232,2]
[352540154,1739158243386,-503.15504741,0.00011232,2]
[352540156,1739158243395,-500.0,0.00011232,2]
[352540157,1739158243405,-500.0,0.00011232,2]
[352540158,1739158243414,-500.0,0.00011232,2]
[352540159,1739158243423,-500.0,0.00011232,2]
[352540160,1739158243432,-869.06,0.00011232,2]
[352540162,1739158243442,-500.0,0.00011232,2]
[352540163,1739158243452,-500.0,0.00011232,2]
[352540164,1739158243462,-500.0,0.00011232,2]
[352540165,1739158243471,-500.0,0.00011232,2]
[352540166,1739158243481,-500.0,0.00011232,2]
[352540167,1739158243490,-500.0,0.00011232,2]
[352540169,1739158243499,-500.0,0.00011232,2]
[352540171,1739158243508,-524.89519878,0.00011232,2]
[352540172,1739158243518,-500.0,0.00011232,2]
[352540173,1739158243527,-500.0,0.00011232,2]
[352540174,1739158243536,-500.0,0.00011232,2]
[352540175,1739158243545,-500.0,0.00011232,2]
[352540176,1739158243555,-500.0,0.00011232,2]
[352540177,1739158243565,-500.0,0.00011232,2]
[352540178,1739158243574,-501.87187501,0.00011232,2]
[352540179,1739158243584,-500.0,0.00011232,2]
[352540180,1739158243593,-501.92022201,0.00011232,2]
[352540181,1739158243602,-500.0,0.00011232,2]
[352540182,1739158243612,-500.0,0.00011232,2]
[352540183,1739158243621,-500.0,0.00011232,2]
[352540184,1739158243631,-500.0,0.00011232,2]
[352540185,1739158243640,-500.0,0.00011232,2]
[352540186,1739158243649,-500.0,0.00011232,2]
[352540187,1739158243659,-500.0,0.00011232,2]
[352540188,1739158243669,-500.0,0.00011232,2]
[352540189,1739158243678,-1264.74,0.00011232,2]
[352540190,1739158243687,-500.0,0.00011232,2]
[352540191,1739158243697,-500.0,0.00011232,2]
[352540192,1739158243706,-500.0,0.00011232,2]
[352540193,1739158243716,-500.0,0.00011232,2]
[352540194,1739158243727,-503.57704402,0.00011232,2]
[352540195,1739158243736,-552.94213255,0.00011232,2]
[352540196,1739158243745,-500.0,0.00011232,2]
[352540197,1739158243755,-500.0,0.00011232,2]
[352540198,1739158243764,-502.91356902,0.00011232,2]
[352540199,1739158243774,-500.0,0.00011232,2]
[352540201,1739158243783,-500.0,0.00011232,2]
[352540203,1739158243792,-500.0,0.00011232,2]
[352540204,1739158243802,-500.0,0.00011232,2]
[352540205,1739158243811,-303.46022281,0.00011232,2]
[352540206,1739158243822,-218.79078048,0.00011232,2]
[352540207,1739158243831,-500.0,0.00011232,2]
[352540208,1739158243841,-500.0,0.00011232,2]
[352540209,1739158243851,-500.0,0.00011232,2]
[352540210,1739158243861,-500.0,0.00011232,2]
[352540211,1739158243871,-500.0,0.00011232,2]
[352540212,1739158243881,-500.0,0.00011232,2]
[352540213,1739158243890,-2387.63,0.00011232,2]
[352540214,1739158243901,-2833.6,0.00011232,2]
[352540215,1739158243910,-500.0,0.00011232,2]
[352540216,1739158243919,-1462.84,0.00011232,2]
[352540217,1739158243929,-500.0,0.00011232,2]
[352540218,1739158243940,-9414.28,0.00011232,2]
[352540219,1739158244035,-2762.05,0.00011232,2]
[352540220,1739158244046,-540.44,0.00011232,2]
[352540221,1739158244056,-832.77,0.00011232,2]
[352540222,1739158244070,-500.0,0.00011232,2]
[352540223,1739158244081,-500.0,0.00011232,2]
[352540224,1739158244091,-500.0,0.00011232,2]
[352540225,1739158244101,-18426.22,0.00011232,2]
[352540226,1739158244112,-500.0,0.00011232,2]
[352540227,1739158244122,-629.0,0.00011232,2]
[352540228,1739158244133,-1212.39,0.00011232,2]
[352540229,1739158244143,-1041.49,0.00011232,2]
[352540230,1739158244154,-500.0,0.00011232,2]
[352540231,1739158244164,-500.0,0.00011232,2]
[352540232,1739158244174,-541.97,0.00011232,2]
[352540233,1739158244184,-500.0,0.00011232,2]
[352540234,1739158244194,-560.89,0.00011232,2]
[352540235,1739158244209,-1382.72,0.00011232,2]
[352540236,1739158244219,-500.0,0.00011232,2]
[352540237,1739158244229,-500.0,0.00011232,2]
[352540238,1739158244239,-500.0,0.00011232,2]
[352540239,1739158244251,-500.0,0.00011232,2]
[352540240,1739158244261,-1123.04,0.00011232,2]
[352540241,1739158244271,-1124.08,0.00011232,2]
[352540242,1739158244283,-500.0,0.00011232,2]
[352540243,1739158244294,-365.28931836,0.00011232,2]
[352540244,1739158244304,-500.0,0.00011232,2]
[352540245,1739158244317,-785.51,0.00011232,2]
[352540246,1739158244331,-500.0,0.00011232,2]
[352540247,1739158244342,-567.61823224,0.00011232,2]
[352540248,1739158244352,-500.0,0.00011232,2]
[352540249,1739158244362,-1966.77,0.00011232,2]
[352540250,1739158244373,-500.0,0.00011232,2]
[352540251,1739158244384,-517.43,0.00011232,2]
[352540252,1739158244394,-1732.80593711,0.00011232,2]
[352540253,1739158244404,-2179.85,0.00011232,2]
[352540254,1739158244414,-1003.81,0.00011232,2]
[352540255,1739158244425,-577.79,0.00011232,2]
[352540256,1739158244434,-500.0,0.00011232,2]
[352540257,1739158244444,-500.0,0.00011232,2]
[352540258,1739158244454,-792.12,0.00011232,2]
[352540259,1739158244464,-888.19,0.00011232,2]
[352540260,1739158244473,-502.53507584,0.00011232,2]
[352540261,1739158244482,-715.47,0.00011232,2]
[352540262,1739158244492,-732.07,0.00011232,2]
[352540263,1739158244502,-974.08,0.00011232,2]
[352540264,1739158244511,-500.0,0.00011232,2]
[352540265,1739158244520,-591.46,0.00011232,2]
[352540266,1739158244530,-500.0,0.00011232,2]
[352540267,1739158244539,-565.22,0.00011232,2]
[352540268,1739158244548,-500.0,0.00011232,2]
[352540269,1739158244558,-838.17,0.00011232,2]
[352540270,1739158244571,-500.0,0.00011232,2]
[352540271,1739158244581,-511.83,0.00011232,2]
[352540272,1739158244591,-2397.98,0.00011232,2]
[352540273,1739158244600,-500.0,0.00011232,2]
[352540274,1739158244609,-500.0,0.00011232,2]
[352540275,1739158244619,-500.0,0.00011232,2]
[352540276,1739158244629,-500.0,0.00011232,2]